fUST/lending_fUST_20240805
["ID","MTS","AMOUNT","RATE_DAILY","PERIOD"]
[334199594,1722831049755,-300.0,0.00025,2]
[334199595,1722831049766,-300.0,0.00025,2]
[334199596,1722831049776,-300.0,0.00025,2]
[334199597,1722831049786,-300.0,0.00025,2]
[334199598,1722831049796,-300.0,0.00025,2]
[334199599,1722831049808,-300.0,0.00025,2]
[334199600,1722831049818,-300.0,0.00025,2]
[334199601,1722831049827,-300.0,0.00025,2]
[334199602,1722831049837,-300.0,0.00025,2]
[334199603,1722831049848,-300.0,0.00025,2]
[334199604,1722831049858,-5998.85595422,0.00025,2]
[334199605,1722831049868,-191.00058843,0.00025,2]
[334199606,1722831049881,-2000.0,0.00025,8]
[334199607,1722831049891,-300.0,0.00025,2]
[334199608,1722831049901,-300.0,0.00025,2]
[334199609,1722831049911,-419.799999,0.00025,2]
[334199610,1722831049921,-215.3,0.00025,2]
[334199611,1722831049931,-215.299999,0.00025,2]
[334199612,1722831049940,-1000.0,0.00025,4]
[334199613,1722831049949,-180.11281749,0.00025,2]
[334199614,1722831049959,-500.0,0.00025014,2]
[334199615,1722831049969,-5000.0,0.00025034,2]
[334199616,1722831049978,-5000.0,0.00025038,2]
[334199617,1722831049987,-1411.0,0.00025043,2]
[334199618,1722831049997,-5000.0,0.00025071,2]
[334199619,1722831050006,-500.0,0.00025078,2]
[334199620,1722831050016,-500.0,0.0002511,2]
[334199621,1722831050025,-2500.0,0.00025111,2]
[334199622,1722831050034,-2500.0,0.00025151,2]
[334199623,1722831050044,-5000.0,0.00025158,2]
[334199624,1722831050054,-500.0,0.00025171,2]
[334199625,1722831050063,-500.0,0.00025175,2]
[334199626,1722831050073,-500.0,0.00025184,2]
[334199627,1722831050082,-5400.0,0.00025186,2]
[334199628,1722831050093,-3500.0,0.00025188,2]
[334199629,1722831050102,-5400.0,0.00025199,2]
[334199630,1722831050112,-3500.0,0.00025204,2]
[334199631,1722831050122,-3500.0,0.0002522,2]
[334199632,1722831050135,-5400.0,0.00025243,2]
[334199633,1722831050145,-500.0,0.00025256,2]
[334199634,1722831050155,-3500.0,0.00025264,2]
[334199635,1722831050165,-303.38955956,0.000253,10]
[334199636,1722831050174,-500.0,0.00025302,2]
[334199637,1722831050183,-3500.0,0.00025307,2]
[334199638,1722831050192,-5000.0,0.00025319,2]
[334199639,1722831050201,-5400.0,0.00025325,2]
[334199640,1722831050211,-3500.0,0.0002534,2]
[334199641,1722831050220,-600.0,0.00025346,2]
[334199642,1722831050229,-5000.0,0.00025358,2]
[334199643,1722831050238,-369.0,0.00025373,2]
[334199644,1722831050247,-372.0,0.00025373,2]
[334199645,1722831050256,-500.0,0.00025373,2]
[334199646,1722831050266,-2500.0,0.00025386,2]
[334199647,1722831050275,-2500.0,0.00025393,2]
[334199648,1722831050285,-2500.0,0.00025404,2]
[334199649,1722831050294,-3500.0,0.00025414,2]
[334199650,1722831050303,-5400.0,0.00025425,2]
[334199651,1722831050314,-2500.0,0.0002544,2]
[334199652,1722831050323,-5000.0,0.00025444,2]
[334199653,1722831050332,-500.0,0.00025445,2]
[334199654,1722831050342,-3500.0,0.00025448,2]
[334199655,1722831050351,-3500.0,0.00025449,2]
[334199656,1722831050361,-5000.0,0.0002546,2]
[334199657,1722831050370,-3500.0,0.0002546,2]
[334199658,1722831050383,-900.0,0.00025469,3]
[334199659,1722831050392,-500.0,0.00025478,2]
[334199660,1722831050401,-3045.40986655,0.00025499,2]
[334199661,1722831050410,-554.68299729,0.00025559,2]
[334199662,1722831050420,-5400.0,0.0002556,2]
[334199663,1722831050429,-3500.0,0.00025566,2]
[334199664,1722831050438,-5000.0,0.00025584,2]
[334199665,1722831050447,-5400.0,0.00025589,2]
[334199666,1722831050457,-500.0,0.00025591,2]
[334199667,1722831050466,-2500.0,0.00025593,2]
[334199668,1722831050475,-500.0,0.00025594,2]
[334199669,1722831050485,-500.0,0.00025607,2]
[334199670,1722831050495,-3500.0,0.00025622,2]
[334199671,1722831050504,-2500.0,0.0002563,2]
[334199672,1722831050514,-5400.0,0.00025632,2]
[334199673,1722831050523,-500.0,0.00025633,2]
[334199674,1722831050532,-500.0,0.00025666,2]
[334199675,1722831050542,-500.0,0.00025695,2]
[334199676,1722831050551,-2500.0,0.00025707,2]
[334199677,1722831050560,-5400.0,0.0002572,2]
[334199678,1722831050569,-500.0,0.00025736,2]
[334199679,1722831050578,-2500.0,0.00025754,2]
[334199680,1722831050587,-5000.0,0.0002576,2]
[334199681,1722831050596,-500.0,0.00025763,2]
[334199682,1722831050606,-190.0,0.00025772,2]
[334199683,1722831050615,-240.0,0.00025775,2]
[334199684,1722831050624,-5000.0,0.00025777,2]
[334199685,1722831050637,-2500.0,0.00025784,2]
[334199686,1722831050646,-2500.0,0.00025786,2]
[334199687,1722831050655,-2500.0,0.00025795,2]
[334199688,1722831050665,-500.0,0.00025813,2]
[334199689,1722831050675,-500.0,0.00025816,2]
[334199690,1722831050684,-5000.0,0.00025824,2]
[334199691,1722831050693,-5400.0,0.00025829,2]
[334199692,1722831050703,-3500.0,0.00025831,2]
[334199693,1722831050713,-2500.0,0.00025837,2]
[334199694,1722831050723,-5400.0,0.00025849,2]
[334199695,1722831050732,-3500.0,0.00025857,2]
[334199696,1722831050742,-25299.411,0.0002586,30]
[334199697,1722831050752,-3500.0,0.00025871,2]
[334199698,1722831050762,-5400.0,0.00025875,2]
[334199699,1722831050771,-2500.0,0.00025876,2]
[334199700,1722831050781,-5000.0,0.00025882,2]
[334199701,1722831050791,-5400.0,0.00025884,2]
[334199702,1722831050804,-2500.0,0.00025911,2]
[334199703,1722831050814,-5400.0,0.00025914,2]
[334199704,1722831050823,-163.66538152,0.00025915,2]
[334199705,1722831050833,-5400.0,0.00025917,2]
[334199706,1722831050845,-5400.0,0.00025918,2]
[334199707,1722831050856,-2500.0,0.00025921,2]
[334199708,1722831050867,-3500.0,0.00025922,2]
[334199709,1722831050880,-5000.0,0.00025931,2]
[334199710,1722831050892,-2500.0,0.00025944,2]
[334199711,1722831050901,-500.0,0.00025963,2]
[334199712,1722831050911,-500.0,0.00025976,2]
[334199713,1722831050924,-5400.0,0.00025981,2]
[334199714,1722831050934,-5000.0,0.00025986,2]
[334199715,1722831050946,-500.0,0.00025989,2]
[334199716,1722831050957,-5000.0,0.00026,2]
[334199717,1722831050968,-2500.0,0.00026018,2]
[334199718,1722831050978,-5400.0,0.0002602,2]
[334199719,1722831050990,-5400.0,0.00026041,2]
[334199720,1722831051000,-500.0,0.00026052,2]
[334199721,1722831051009,-5000.0,0.00026087,2]
[334199722,1722831051019,-500.0,0.00026092,2]
[334199723,1722831051029,-5000.0,0.00026099,2]
[334199724,1722831051038,-3500.0,0.00026099,2]
[334199725,1722831051050,-3578.24,0.000261,7]
[334199726,1722831051059,-12272.04,0.000261,14]
[334199727,1722831051068,-500.0,0.00026104,2]
[334199728,1722831051078,-499.3,0.00026128,2]
[334199729,1722831051088,-5000.0,0.0002617,2]
[334199730,1722831051097,-2500.0,0.00026183,2]
[334199731,1722831051107,-5400.0,0.00026192,2]
[334199732,1722831051117,-3500.0,0.00026198,2]
[334199733,1722831051129,-122471.71,0.000262,14]
[334199734,1722831051138,-500.0,0.00026205,2]
[334199735,1722831051147,-2500.0,0.00026208,2]
[334199736,1722831051156,-500.0,0.00026209,2]
[334199737,1722831051165,-5400.0,0.00026228,2]
[334199738,1722831051176,-5000.0,0.00026233,2]
[334199739,1722831051187,-5400.0,0.00026262,2]
[334199740,1722831051198,-2500.0,0.00026279,2]
[334199741,1722831051207,-5000.0,0.00026281,2]
[334199742,1722831051219,-500.0,0.00026288,2]
[334199743,1722831051228,-3500.0,0.00026295,2]
[334199744,1722831051238,-5400.0,0.00026297,2]
[334199745,1722831051248,-2500.0,0.00026309,2]
[334199746,1722831051258,-5000.0,0.00026333,2]
[334199747,1722831051268,-500.0,0.00026365,2]
[334199748,1722831051277,-3500.0,0.00026365,2]
[334199749,1722831051287,-369.0,0.00026388,2]
[334199750,1722831051296,-345.249769,0.00026388,2]
[334199751,1722831051306,-5400.0,0.00026421,2]
[334199752,1722831051316,-3500.0,0.00026424,2]
[334199753,1722831051325,-500.0,0.00026429,2]
[334199754,1722831051334,-500.0,0.00026433,2]
[334199755,1722831051344,-7458.94652043,0.0002649,2]
[334199756,1722831051353,-3500.0,0.00026515,2]
[334199757,1722831051363,-5400.0,0.00026515,2]
[334199758,1722831051374,-160.625361,0.00026521,2]
[334199759,1722831051390,-5000.0,0.00026531,2]
[334199760,1722831051400,-500.0,0.00026532,2]
[334199761,1722831051411,-907.54807736,0.00026543,10]
[334199762,1722831051424,-3564.67002531,0.00026552,60]
[334199763,1722831051433,-500.0,0.00026564,2]
[334199764,1722831051442,-5000.0,0.00026574,2]
[334199765,1722831051451,-369.0,0.00026581,2]
[334199766,1722831051540,-5000.0,0.00026586,2]
[334199767,1722831051550,-2500.0,0.00026587,2]
[334199768,1722831051561,-500.0,0.00026588,2]
[334199769,1722831051570,-608.73,0.000266,31]
[334199770,1722831051580,-608.73,0.000266,31]
[334199771,1722831051590,-608.73,0.000266,31]
[334199772,1722831051600,-608.73,0.000266,31]
[334199773,1722831051609,-608.73,0.000266,31]
[334199774,1722831051618,-608.73,0.000266,31]
[334199775,1722831051631,-608.73,0.000266,31]
[334199776,1722831051641,-608.73,0.000266,31]
[334199777,1722831051651,-608.73,0.000266,31]
[334199778,1722831051660,-608.73,0.000266,31]
[334199779,1722831051669,-608.73,0.000266,31]
[334199780,1722831051678,-608.73,0.000266,31]
[334199781,1722831051687,-608.73,0.000266,31]
[334199782,1722831051697,-608.73,0.000266,31]
[334199783,1722831051706,-608.73,0.000266,31]
[334199784,1722831051716,-608.73,0.000266,31]
[334199785,1722831051726,-608.73,0.000266,31]
[334199786,1722831051736,-608.73,0.000266,31]
[334199787,1722831051745,-608.73,0.000266,31]
[334199788,1722831051755,-608.73,0.000266,31]
[334199789,1722831051765,-500.0,0.00026601,2]
[334199790,1722831051774,-3500.0,0.00026636,2]
[334199791,1722831051784,-500.0,0.00026655,2]
[334199792,1722831051793,-500.0,0.00026669,2]
[334199793,1722831051803,-3500.0,0.0002668,2]
[334199794,1722831051814,-2500.0,0.00026693,2]
[334199795,1722831051824,-3500.0,0.00026698,2]
[334199796,1722831051834,-3500.0,0.00026711,2]
[334199797,1722831051844,-153.0,0.0002673,2]
[334199798,1722831051853,-500.0,0.00026738,2]
[334199799,1722831051863,-5400.0,0.0002674,2]
[334199800,1722831051872,-5000.0,0.00026753,2]
[334199801,1722831051886,-2500.0,0.00026764,2]
[334199802,1722831051896,-2500.0,0.00026766,2]
[334199803,1722831051905,-500.0,0.00026776,2]
[334199804,1722831051915,-651.62160659,0.00026782,2]
[334199805,1722831051924,-500.0,0.00026797,2]
[334199806,1722831051933,-153.93598965,0.00026797,8]
[334199807,1722831051942,-1380.03529464,0.00026798,2]
[334199808,1722831051951,-5000.0,0.00026801,2]
[334199809,1722831051960,-907.54807736,0.00026808,10]
[334199810,1722831051968,-5400.0,0.0002683,2]
[334199811,1722831051977,-500.0,0.00026837,2]
[334199812,1722831051986,-3500.0,0.00026842,2]
[334199813,1722831051996,-5400.0,0.00026846,2]
[334199814,1722831052006,-5000.0,0.0002687,2]
[334199815,1722831052015,-623.72138394,0.00026873,2]
[334199816,1722831052026,-500.0,0.00026873,2]
[334199817,1722831052035,-4842.28138897,0.0002688,2]
[334199818,1722831052045,-500.0,0.00026893,2]
[334199819,1722831052054,-3500.0,0.00026894,2]
[334199820,1722831052064,-648.71252444,0.00026902,2]
[334199821,1722831052074,-5000.0,0.00026926,2]
[334199822,1722831052083,-6940.30931941,0.00026936,2]
[334199823,1722831052094,-837.56571551,0.00026957,2]
[334199824,1722831052104,-9953.95423109,0.00026963,2]
[334199825,1722831052113,-9903.06400294,0.00026964,2]
[334199826,1722831052122,-700.13019492,0.00026995,2]
[334199827,1722831052136,-154.72922386,0.00027,3]
[334199828,1722831052145,-492.46705993,0.00027,14]
[334199829,1722831052154,-154.74467129,0.00027,15]
[334199830,1722831052164,-13234.84134782,0.00027,2]
[334199831,1722831052173,-84508.05099508,0.00027,14]
[334199832,1722831052183,-263.40140176,0.00027,2]
[334199833,1722831052192,-14444.99396418,0.00027,2]
[334199834,1722831052202,-154.74467129,0.00027,2]
[334199835,1722831052211,-500.0,0.00027,2]
[334199836,1722831052220,-500.0,0.00027,2]
[334199837,1722831052229,-500.0,0.00027,2]
[334199838,1722831052238,-492.58426519,0.00027,2]
[334199839,1722831052248,-1625.81763535,0.00027,2]
[334199840,1722831052257,-2361.49055473,0.00027,2]
[334199841,1722831052267,-1751.39413781,0.00027,2]
[334199842,1722831052276,-154.72922386,0.00027,2]
[334199843,1722831052287,-1630.37877573,0.00027,2]
[334199844,1722831052296,-154.86756912,0.00027,2]
[334199845,1722831052305,-907.54807736,0.00027073,10]
[334199846,1722831052315,-350.699955,0.00027167,2]
[334199847,1722831052323,-907.54807736,0.00027339,10]
[334199848,1722831052332,-240.0,0.00027386,2]
[334199849,1722831052341,-207.5825686,0.00027397,2]
[334199850,1722831052351,-438.65,0.00027397,60]
[334199851,1722831052360,-3905.0,0.00027397,60]
[334199852,1722831052369,-400.0,0.00027397,60]
[334199853,1722831052382,-3534.82188,0.00027397,120]
[334199854,1722831052392,-369.0,0.00027402,2]
[334199855,1722831052402,-43735.35373976,0.000275,2]
[334199856,1722831052411,-12272.04,0.000275,14]
[334199857,1722831052420,-3578.24,0.000276,7]
[334199858,1722831052430,-1058.80609025,0.00027604,12]
[334199859,1722831052439,-240.0,0.00027616,2]
[334199860,1722831052449,-800.0,0.00027687,2]
[334199861,1722831052457,-122471.71,0.000277,14]
[334199862,1722831052468,-369.0,0.00027789,2]
[334199863,1722831052477,-512.4747,0.0002786,30]
[334199864,1722831052486,-1058.80609025,0.0002787,12]
[334199865,1722831052496,-30758.33566077,0.000279,2]
[334199866,1722831052505,-153.0,0.00027977,2]
[334199867,1722831052515,-590.6322226,0.00027977,2]
[334199868,1722831052524,-27820.0,0.00028,60]
[334199869,1722831052533,-5114.70650818,0.00028,120]
[334199870,1722831052543,-328.572,0.00028043,2]
[334199871,1722831052553,-1058.80609025,0.00028135,12]
[334199872,1722831052563,-1058.80609025,0.00028401,12]
[334199873,1722831052572,-369.0,0.00028417,2]
[334199874,1722831052582,-165.468717,0.00028493,2]
[334199875,1722831052591,-165.468717,0.00028493,9]
[334199876,1722831052601,-165.468717,0.00028493,16]
[334199877,1722831052610,-165.468717,0.00028493,24]
[334199878,1722831052619,-165.468717,0.00028493,31]
[334199879,1722831052633,-165.468717,0.00028493,38]
[334199880,1722831052642,-165.468717,0.00028493,46]
[334199881,1722831052651,-165.468717,0.00028493,53]
[334199882,1722831052660,-165.468717,0.00028493,61]
[334199883,1722831052670,-165.468717,0.00028493,68]
[334199884,1722831052679,-165.468717,0.00028493,75]
[334199885,1722831052688,-165.468717,0.00028493,83]
[334199886,1722831052697,-165.468717,0.00028493,90]
[334199887,1722831052707,-165.468717,0.00028493,97]
[334199888,1722831052716,-165.468717,0.00028493,105]
[334199889,1722831052725,-165.468717,0.00028493,112]
[334199890,1722831052734,-165.468717,0.00028493,120]
[334199891,1722831052743,-1210.06410315,0.00028666,14]
[334199892,1722831052752,-430.8713912,0.00028697,2]
[334199893,1722831052761,-153.93598965,0.00028797,15]
[334199894,1722831052771,-11446.4610002,0.0002888,2]
[334199895,1722831052780,-17456.71911672,0.000289,2]
[334199896,1722831052790,-684.30328228,0.00028909,2]
[334199897,1722831052801,-1210.06410315,0.00028931,14]
[334199898,1722831052811,-369.0,0.00028997,2]
[334199899,1722831052821,-240.0,0.00028997,2]
[334199900,1722831052830,-160.0,0.00028999,10]
[334199901,1722831052839,-1428.72325594,0.00028999,4]
[334199902,1722831052850,-850.54048991,0.00029,2]
[334199903,1722831052859,-2774878.52232035,0.00029,30]
[334199904,1722831052870,-369.0,0.00029432,2]
[334199905,1722831052884,-175.91339588,0.0002949,10]
[334199906,1722831052896,-105918.26272268,0.000295,7]
[334199907,1722831052910,-86058.5238145,0.000295,7]
[334199908,1722831052919,-88734.88255895,0.000295,2]
[334199909,1722831052928,-4094.88950423,0.000295,2]
[334199910,1722831052938,-464.96691131,0.000295,2]
[334199911,1722831052947,-154.72922386,0.000295,2]
[334199912,1722831052958,-523.79949447,0.000295,2]
[334199913,1722831052968,-1000.30100299,0.000295,2]
[334199914,1722831052978,-1001.7315825,0.000295,2]
[334199915,1722831052988,-1001.98961065,0.000295,2]
[334199916,1722831052999,-205.12595802,0.000295,2]
[334199917,1722831053009,-1000.0,0.000295,120]
[334199918,1722831053018,-801.12789265,0.000295,30]
[334199919,1722831053028,-1180.41979685,0.000295,30]
[334199920,1722831053038,-31423.09417536,0.000295,30]
[334199921,1722831053047,-230.56414036,0.000295,30]
[334199922,1722831053056,-1717.50786813,0.000295,30]
[334199923,1722831053066,-362.29492437,0.000295,30]
[334199924,1722831053075,-200.0,0.000295,10]
[334199925,1722831053084,-2764.0,0.000295,60]
[334199926,1722831053094,-1000.0,0.000295,120]
[334199927,1722831053103,-300.0,0.000295,2]
[334199928,1722831053113,-788.52102334,0.000295,2]
[334199929,1722831053199,-511.07408188,0.000295,2]
[334199930,1722831053208,-289.27027248,0.000295,2]
[334199931,1722831053217,-4125.48429522,0.000295,2]
[334199932,1722831053226,-318.48054973,0.000295,2]
[334199933,1722831053235,-284.16912713,0.000295,2]
[334199934,1722831053244,-10034.69864559,0.000295,2]
[334199935,1722831053253,-153.40849664,0.000295,2]
[334199936,1722831053263,-512.411173,0.000295,2]
[334199937,1722831053272,-18890.95637376,0.000295,2]
[334199938,1722831053282,-434.64935788,0.000295,2]
[334199939,1722831053291,-222.01936105,0.000295,2]
[334199940,1722831053300,-3039.46516888,0.000295,2]
[334199941,1722831053310,-3625.34033596,0.000295,2]
[334199942,1722831053320,-152801.7016887,0.000295,2]
[334199943,1722831053329,-1012.59371931,0.000295,2]
[334199944,1722831053338,-488.63925807,0.000295,120]
[334199945,1722831053348,-2927.46798017,0.000295,7]
[334199946,1722831053359,-5719.00040735,0.000295,120]
[334199947,1722831053368,-200000.0,0.000295,60]
[334199948,1722831053381,-715.70860709,0.000295,30]
[334199949,1722831053395,-150.0,0.000295,14]
[334199950,1722831053405,-150.0,0.000295,14]
[334199951,1722831053415,-500000.0,0.000295,20]
[334199952,1722831053425,-1000.0,0.000295,90]
[334199953,1722831053434,-1000.0,0.000295,90]
[334199954,1722831053444,-8960.11861391,0.000295,120]
[334199955,1722831053455,-1342.24234666,0.000295,30]
[334199956,1722831053465,-859.4899664,0.000295,120]
[334199957,1722831053478,-1299.82750361,0.000295,120]
[334199958,1722831053487,-1577.40365578,0.000295,120]
[334199959,1722831053498,-940.09233473,0.000295,120]
[334199960,1722831053507,-1083.31899,0.000295,2]
[334199961,1722831053516,-2000.0,0.000295,120]
[334199962,1722831053526,-1029.35308419,0.000295,120]
[334199963,1722831053535,-891.75544519,0.000295,120]
[334199964,1722831053544,-1010.67998414,0.000295,120]
[334199965,1722831053554,-1689.061378,0.000295,35]
[334199966,1722831053563,-1000.0,0.000295,120]
[334199967,1722831053573,-229.7891214,0.000295,120]
[334199968,1722831053582,-256.02986661,0.000295,120]
[334199969,1722831053592,-1152.38851924,0.000295,30]
[334199970,1722831053601,-1210.5752701,0.000295,14]
[334199971,1722831053610,-228.10620551,0.000295,10]
[334199972,1722831053620,-1036.67460678,0.000295,10]
[334199973,1722831053635,-726.51687586,0.000295,35]
[334199974,1722831053645,-246287.64450326,0.000295,10]
[334199975,1722831053654,-339.18862167,0.000295,120]
[334199976,1722831053663,-666.85879243,0.000295,120]
[334199977,1722831053674,-1031.68367465,0.000295,30]
[334199978,1722831053683,-1999.999998,0.000295,120]
[334199979,1722831053692,-194.1705906,0.000295,120]
[334199980,1722831053702,-674.71141434,0.000295,35]
[334199981,1722831053711,-20000.0,0.000295,60]
[334199982,1722831053721,-474.12005541,0.000295,120]
[334199983,1722831053730,-190210.72480682,0.000295,12]
[334199984,1722831053739,-183.0,0.000295,30]
[334199985,1722831053748,-150.0,0.000295,2]
[334199986,1722831053757,-58073.45819057,0.000295,30]
[334199987,1722831053767,-1254.40717015,0.000295,2]
[334199988,1722831053778,-200.0,0.000295,30]
[334199989,1722831053788,-300.0,0.000295,30]
[334199990,1722831053798,-1304.31626017,0.000295,40]
[334199991,1722831053807,-315.299999,0.000295,90]
[334199992,1722831053821,-315.299999,0.000295,120]
[334199993,1722831053830,-154.0,0.000295,14]
[334199994,1722831053839,-4396.0,0.000295,120]
[334199995,1722831053849,-2539.98586886,0.000295,120]
[334199996,1722831053861,-807.95761563,0.000295,2]
[334199997,1722831053871,-201587.15464648,0.000295,120]
[334199998,1722831053883,-7745.7911467,0.000295,4]
[334199999,1722831053893,-1462.52220652,0.000295,120]
[334200000,1722831053903,-28315.56451741,0.000295,120]
[334200001,1722831053912,-6828.1152304,0.000295,120]
[334200002,1722831053921,-19739.33319843,0.000295,120]
[334200003,1722831053930,-162.55400853,0.000295,120]
[334200004,1722831053939,-6573.58264733,0.000295,35]
[334200005,1722831053950,-500.0,0.000295,10]
[334200006,1722831053959,-500.0,0.000295,10]
[334200007,1722831053968,-500.0,0.000295,10]
[334200008,1722831053977,-500.0,0.000295,10]
[334200009,1722831053986,-500.0,0.000295,10]
[334200010,1722831053996,-500.0,0.000295,10]
[334200011,1722831054005,-500.0,0.000295,10]
[334200012,1722831054014,-500.0,0.000295,10]
[334200013,1722831054023,-465.52607976,0.000295,10]
[334200014,1722831054033,-500.0,0.000295,10]
[334200015,1722831054042,-2480.74540206,0.000295,120]
[334200016,1722831054051,-985.00136382,0.000295,2]
[334200017,1722831054060,-150.0,0.000295,30]
[334200018,1722831054069,-150.0,0.000295,30]
[334200019,1722831054078,-150.0,0.000295,30]
[334200020,1722831054087,-150.0,0.000295,30]
[334200021,1722831054096,-150.0,0.000295,30]
[334200022,1722831054106,-250.0,0.000295,30]
[334200023,1722831054115,-400.0,0.000295,30]
[334200024,1722831054124,-400.0,0.000295,30]
[334200025,1722831054137,-400.0,0.000295,30]
[334200026,1722831054146,-400.0,0.000295,30]
[334200027,1722831054156,-400.0,0.000295,30]
[334200028,1722831054165,-400.0,0.000295,30]
[334200029,1722831054174,-600.0,0.000295,30]
[334200030,1722831054183,-1000.46786227,0.000295,2]
[334200031,1722831054193,-12272.04,0.000296,14]
[334200032,1722831054202,-1380.03529464,0.00029741,2]
[334200033,1722831054211,-663.87098914,0.0002988,30]
[334200034,1722831054220,-2000.0,0.000299,120]
[334200035,1722831054229,-814.2980552,0.000299,60]
[334200036,1722831054238,-290.9976,0.000299,120]
[334200037,1722831054247,-122471.71,0.000299,14]
[334200038,1722831054256,-472.73700279,0.0003,4]
[334200039,1722831054265,-154.65203293,0.0003,4]
[334200040,1722831054274,-406.8422428,0.0003,3]
[334200041,1722831054283,-920.26040585,0.0003,4]
[334200042,1722831054293,-44289.27537185,0.0003,7]
[334200043,1722831054302,-1004.7802358,0.0003,7]
[334200044,1722831054312,-385.67582475,0.0003,10]
[334200045,1722831054321,-203.55185702,0.0003,30]
[334200046,1722831054330,-673.71213213,0.0003,120]
[334200047,1722831054340,-2023.20840108,0.0003,120]
[334200048,1722831054349,-500.0,0.0003,120]
[334200049,1722831054359,-2502.57552103,0.0003,120]
[334200050,1722831054368,-450.0,0.0003,120]
[334200051,1722831054382,-300.5728957,0.0003,4]
[334200052,1722831054391,-5998.85595422,0.0003,2]
[334200053,1722831054400,-85059.48351723,0.0003,30]
[334200054,1722831054410,-9671.0,0.0003,30]
[334200055,1722831054419,-200.0,0.0003,120]
[334200056,1722831054428,-2600.0,0.0003,120]
[334200057,1722831054437,-320.39009061,0.0003,30]
[334200058,1722831054447,-368.03709246,0.0003,7]
[334200059,1722831054457,-151.0,0.0003,120]
[334200060,1722831054467,-151.0,0.0003,120]
[334200061,1722831054476,-3578.24,0.0003,7]
[334200062,1722831054485,-261.0,0.0003,2]
[334200063,1722831054495,-271.10757906,0.0003,2]
[334200064,1722831054504,-444.40375398,0.00030137,60]
[334200065,1722831054514,-1000.0,0.00030278,2]
[334200066,1722831054524,-200.0,0.00030353,2]
[334200067,1722831054533,-153.8703016,0.00030414,2]
[334200068,1722831054543,-209.0900165,0.00030414,2]
[334200069,1722831054552,-588.4884319,0.00030414,2]
[334200070,1722831054562,-153.0,0.00030414,2]
[334200071,1722831054571,-207.0130742,0.00030414,2]
[334200072,1722831054581,-153.0,0.00030414,2]
[334200073,1722831054590,-201.6706531,0.00030414,2]
[334200074,1722831054600,-153.0,0.00030414,2]
[334200075,1722831054609,-153.0,0.00030414,2]
[334200076,1722831054619,-153.0,0.00030414,2]
[334200077,1722831054628,-369.0,0.00030447,2]
[334200078,1722831054639,-150.0,0.000305,2]
[334200079,1722831054725,-153.93598965,0.00030797,22]
[334200080,1722831054735,-150.0,0.00031,7]
[334200081,1722831054744,-151.0,0.00031041,120]
[334200082,1722831054754,-3534.82188,0.00031963,120]
[334200083,1722831054764,-600.0,0.00032,120]
[334200084,1722831054774,-150.0,0.00032,30]
[334200085,1722831054784,-372.6903679,0.00032058,2]
[334200086,1722831054795,-151.0,0.00032082,120]
[334200087,1722831054810,-3578.24,0.000323,7]
[334200088,1722831054819,-12272.04,0.000324,14]
[334200089,1722831054829,-122471.71,0.000324,14]
[334200090,1722831054839,-4000.0,0.000325,30]
[334200091,1722831054848,-60081.24649652,0.000325,60]
[334200092,1722831054858,-1380.03529464,0.00032684,2]
[334200093,1722831054867,-200.0,0.00032727,2]